bitfinex/quotes_BTCUSD_20241215
["timestamp","ask_amount","ask_price","bid_price","bid_amount"]
[1734304407111,0.0795,103570.0,103550.0,0.31445069]
[1734304407112,0.22465403,103570.0,103550.0,0.31445069]
[1734304407685,0.22465403,103570.0,103540.0,0.55076069]
[1734304407918,0.22465403,103570.0,103540.0,0.35853285]
[1734304408161,0.22465403,103570.0,103540.0,0.5518439]
[1734304408387,0.22465403,103570.0,103540.0,0.55090974]
[1734304408868,0.29219103,103560.0,103540.0,0.00016405]
[1734304409827,0.09905403,103560.0,103540.0,0.00016405]
[1734304411016,0.09905403,103560.0,103540.0,0.15016405]
[1734304411273,0.34217803,103560.0,103540.0,0.15016405]
[1734304411528,0.023,103550.0,103540.0,0.00016405]
[1734304411813,0.6644,103540.0,103530.0,8.61e-05]
[1734304412074,0.95661603,103540.0,103530.0,0.00054724]
[1734304412609,1.08551603,103540.0,103530.0,0.00054724]
[1734304413154,0.834586,103530.0,103510.0,8.62e-05]
[1734304413431,0.29225303,103520.0,103510.0,8.62e-05]
[1734304413721,0.44855303,103520.0,103510.0,8.62e-05]
[1734304414012,0.1312,103520.0,103510.0,8.62e-05]
[1734304414540,0.1312,103520.0,103510.0,0.1933042]
[1734304414794,0.1312,103520.0,103510.0,8.62e-05]
[1734304415038,0.1312,103520.0,103510.0,0.1500862]
[1734304415522,0.23025403,103520.0,103510.0,0.1500862]
[1734304416549,0.61974774,103540.0,103510.0,0.3433042]
[1734304416806,0.22450177,103540.0,103530.0,0.15]
[1734304417536,0.12544774,103540.0,103530.0,0.34318]
[1734304417829,0.12544774,103540.0,103530.0,0.15]
[1734304417830,0.13539891,103540.0,103530.0,0.15]
[1734304418779,0.00054774,103540.0,103530.0,0.50763069]
[1734304419440,0.00054774,103540.0,103530.0,0.50771689]
[1734304422025,0.00054774,103540.0,103530.0,0.60677092]
[1734304423360,7.4e-07,103540.0,103530.0,2.6363825]
[1734304423575,7.4e-07,103540.0,103530.0,0.8211875]
[1734304424245,0.06659854,103600.0,103580.0,0.193076]
[1734304424468,0.07143684,103600.0,103590.0,0.343068]
[1734304424683,0.0581637,103600.0,103590.0,0.343068]
[1734304425548,0.0581637,103600.0,103590.0,0.34323219]
[1734304426268,0.15721773,103600.0,103590.0,0.15016419]
[1734304426484,0.47326773,103600.0,103590.0,0.00016419]
[1734304426697,0.47326773,103600.0,103570.0,0.193105]
[1734304426698,0.28021773,103600.0,103570.0,0.193105]
[1734304426917,0.09905403,103590.0,103570.0,0.386198]
[1734304427565,0.1342637,103600.0,103580.0,0.386164]
[1734304427780,0.0581637,103600.0,103590.0,0.193068]
[1734304427991,0.0581637,103600.0,103580.0,0.386151]
[1734304428202,0.0581637,103600.0,103580.0,0.579227]
[1734304428422,0.0581637,103600.0,103590.0,0.193068]
[1734304430603,0.0581637,103600.0,103590.0,0.343068]
[1734304430843,0.0098637,103600.0,103590.0,0.50751869]
[1734304431261,0.72092666,103620.0,103600.0,0.343044]
[1734304431469,0.09905403,103610.0,103600.0,0.343044]
[1734304432542,0.09905403,103610.0,103600.0,0.34320824]
[1734304434872,0.14905403,103610.0,103600.0,0.00016424]
[1734304435073,0.14905403,103610.0,103580.0,8.62e-05]
[1734304435074,0.41508503,103610.0,103580.0,8.62e-05]
[1734304435403,0.1722185,103610.0,103580.0,0.1931572]
[1734304435618,0.2222185,103610.0,103590.0,0.193065]
[1734304435823,0.7636185,103610.0,103580.0,0.3862442]
[1734304436061,0.9566495,103610.0,103580.0,0.3862442]
[1734304436261,0.7136185,103610.0,103580.0,0.3862332]
[1734304436474,0.7136185,103610.0,103590.0,0.193066]
[1734304436689,0.54156447,103610.0,103600.0,0.34305]
[1734304437555,0.6406185,103610.0,103580.0,0.3862312]
[1734304437779,0.09905403,103600.0,103580.0,0.1931572]
[1734304437993,0.09905403,103600.0,103580.0,0.1931712]
[1734304438217,0.09905403,103600.0,103580.0,8.62e-05]
[1734304438218,0.74045403,103600.0,103580.0,8.62e-05]
[1734304438472,0.982468,103590.0,103580.0,8.62e-05]
[1734304438686,0.5914,103570.0,103540.0,0.19315]
[1734304438895,0.09905403,103560.0,103540.0,0.38631]
[1734304439105,0.09905403,103560.0,103540.0,0.386301]
[1734304439317,0.09905403,103560.0,103540.0,0.386298]
[1734304439542,0.09905403,103560.0,103550.0,0.193143]
[1734304439765,0.5414,103570.0,103550.0,0.64977972]
[1734304439979,0.5414,103570.0,103560.0,0.50757469]
[1734304440396,0.125,103590.0,103580.0,0.193087]
[1734304440605,0.14541847,103590.0,103560.0,0.343113]
[1734304440830,0.14541847,103590.0,103570.0,0.50755469]
[1734304441098,0.14541847,103590.0,103580.0,0.193087]
[1734304441310,0.14541847,103590.0,103580.0,0.343087]
[1734304441517,0.04636444,103590.0,103580.0,0.343087]
[1734304443205,0.14541847,103590.0,103580.0,0.15]
[1734304443893,0.14541847,103590.0,103580.0,0.343087]
[1734304444312,0.00016444,103590.0,103580.0,0.15]
[1734304444526,0.09921847,103590.0,103580.0,0.15]
[1734304446493,0.09921847,103590.0,103580.0,0.343087]
[1734304448621,0.09921847,103590.0,103580.0,0.15]
[1734304448867,0.09921847,103590.0,103570.0,0.15]
[1734304449097,0.09905403,103580.0,103550.0,0.3863582]
[1734304449305,0.33764103,103580.0,103550.0,0.3863582]
[1734304449517,0.14455403,103580.0,103560.0,0.193124]
[1734304450197,0.14455403,103580.0,103560.0,0.386248]
[1734304450408,0.14455403,103580.0,103560.0,0.193124]
[1734304450616,0.14455403,103580.0,103560.0,0.15]
[1734304450825,1.07213003,103580.0,103560.0,0.15]
[1734304451033,0.68595403,103580.0,103560.0,0.343122]
[1734304451514,0.68595403,103580.0,103560.0,0.536244]
[1734304452563,0.68595403,103580.0,103560.0,0.343122]
[1734304452782,0.87904203,103580.0,103560.0,0.15]
[1734304452997,1.07214003,103580.0,103560.0,0.15]
[1734304453423,0.87904203,103580.0,103560.0,0.15]
[1734304453866,0.81204202,103580.0,103560.0,0.15]
[1734304454320,1.00514002,103580.0,103560.0,0.15]
[1734304454534,1.057826,103570.0,103550.0,8.62e-05]
[1734304454745,0.09905403,103560.0,103550.0,8.62e-05]
[1734304455836,0.90657803,103560.0,103550.0,8.62e-05]
[1734304456743,0.64045403,103560.0,103550.0,8.62e-05]
[1734304457169,0.83357803,103560.0,103550.0,8.62e-05]
[1734304457591,0.64045403,103560.0,103550.0,8.62e-05]
[1734304458897,0.5870724,103580.0,103560.0,0.38622]
[1734304459121,0.5870724,103580.0,103570.0,0.193106]
[1734304459342,0.69604431,103580.0,103560.0,0.193107]
[1734304459558,0.69604431,103580.0,103560.0,0.38623]
[1734304459973,0.69604431,103580.0,103560.0,0.193107]
[1734304460402,0.69604431,103580.0,103560.0,0.386231]
[1734304461058,0.69604431,103580.0,103570.0,0.15]
[1734304461059,0.01009028,103580.0,103570.0,0.15]
[1734304461272,0.01009028,103580.0,103570.0,0.343106]
[1734304464413,0.10914431,103580.0,103560.0,0.193107]
[1734304464643,0.01009028,103580.0,103560.0,0.55081545]
[1734304464864,0.01009028,103580.0,103570.0,0.193106]
[1734304465295,0.01009028,103580.0,103570.0,0.50770045]
[1734304466149,0.01009028,103580.0,103570.0,0.343106]
[1734304466365,0.01009028,103580.0,103570.0,0.50770045]
[1734304466602,0.01009028,103580.0,103570.0,0.35770045]
[1734304466876,0.0001724,103580.0,103570.0,0.60675448]
[1734304467126,0.0001724,103580.0,103570.0,0.69226927]
[1734304467567,0.0001724,103580.0,103570.0,1.09227387]
[1734304467806,0.0001724,103580.0,103570.0,1.26330345]
[1734304468445,0.0001724,103580.0,103570.0,1.47709043]
[1734304468867,0.64715763,103620.0,103570.0,1.47709043]
[1734304469079,0.12205403,103610.0,103600.0,0.193049]
[1734304470167,0.05291757,103620.0,103600.0,0.55069245]
[1734304470385,0.1519716,103620.0,103610.0,0.193031]
[1734304470602,0.16174551,103620.0,103610.0,0.193031]
[1734304471693,0.18474551,103620.0,103610.0,0.193031]
[1734304472176,0.18474551,103620.0,103600.0,0.35764345]
[1734304473026,0.18474551,103620.0,103610.0,0.193031]
[1734304473241,0.06269148,103620.0,103610.0,0.193031]
[1734304473463,0.01479148,103620.0,103610.0,0.193031]
[1734304474323,0.01479148,103620.0,103610.0,0.343031]
[1734304474538,8.63e-05,103660.0,103650.0,0.192957]
[1734304474782,8.63e-05,103660.0,103650.0,0.342957]
[1734304474999,0.10960589,103660.0,103630.0,0.342987]
[1734304475217,0.10960589,103660.0,103640.0,0.32171467]
[1734304475398,0.10960589,103660.0,103640.0,0.51467967]
[1734304475399,0.09968919,103660.0,103640.0,0.51467967]
[1734304476278,0.09968919,103660.0,103640.0,0.32170567]
[1734304476703,0.00633478,103650.0,103640.0,0.32170567]
[1734304476927,0.00633478,103650.0,103630.0,0.192981]
[1734304476928,0.12838881,103650.0,103630.0,0.192981]
[1734304477151,0.12838881,103650.0,103630.0,0.15]
[1734304477152,0.12205403,103640.0,103630.0,0.15]
[1734304477488,0.54773478,103650.0,103630.0,0.70056745]
[1734304477572,0.5414,103650.0,103640.0,0.342975]
[1734304477994,0.5414,103650.0,103640.0,0.50756945]
[1734304478882,0.5414,103650.0,103640.0,0.51573843]
[1734304479102,0.47439999,103650.0,103640.0,0.51573843]
[1734304479370,0.00063516,103660.0,103650.0,0.15]
[1734304479588,0.00063516,103660.0,103650.0,0.342957]
[1734304479796,0.00063516,103660.0,103650.0,0.35112598]
[1734304480036,0.00063516,103660.0,103650.0,0.51572043]
[1734304480900,0.2321,103650.0,103600.0,0.40715103]
[1734304481117,0.223,103630.0,103600.0,0.3862594]
[1734304481328,0.223,103630.0,103600.0,0.3862474]
[1734304481329,0.023,103610.0,103600.0,0.3862474]
[1734304481543,0.47952566,103620.0,103610.0,0.193031]
[1734304481764,0.47439999,103620.0,103610.0,0.193031]
[1734304481982,0.1526,103640.0,103630.0,0.192994]
[1734304482203,0.1526,103640.0,103620.0,0.55059545]
[1734304482204,0.25165403,103640.0,103620.0,0.55059545]
[1734304482438,0.1296,103640.0,103620.0,0.55059345]
[1734304482658,0.67439999,103650.0,103630.0,0.192994]
[1734304482875,0.81696088,103650.0,103630.0,0.192994]
[1734304483524,0.8266125,103650.0,103630.0,0.192994]
[1734304484661,0.8266125,103650.0,103630.0,0.385988]
[1734304484662,0.5836545,103650.0,103630.0,0.385988]
[1734304484881,0.5836545,103650.0,103630.0,0.385987]
[1734304485360,0.5836545,103650.0,103630.0,0.385976]
[1734304485579,0.5836545,103650.0,103640.0,0.192975]
[1734304485807,0.6066545,103650.0,103640.0,0.192975]
[1734304486035,0.01020048,103650.0,103640.0,0.192975]
[1734304486463,0.01020048,103650.0,103630.0,0.39588463]
[1734304486676,0.30222351,103650.0,103620.0,0.343001]
[1734304486891,0.29203003,103640.0,103610.0,0.193018]
[1734304487110,0.53747836,103630.0,103600.0,0.3862594]
[1734304487322,0.023,103610.0,103600.0,0.0001724]
[1734304487574,0.31508503,103610.0,103600.0,0.0001724]
[1734304488681,0.4051634,103610.0,103600.0,0.0001724]
[1734304488910,0.87956339,103610.0,103600.0,0.0001724]
[1734304490669,0.95910062,103610.0,103600.0,0.0001724]
[1734304491099,0.79450617,103610.0,103600.0,0.0001724]
[1734304491523,0.99450617,103610.0,103600.0,0.0001724]
[1734304491948,1.03458454,103610.0,103600.0,0.0001724]
[1734304492646,0.48470063,103610.0,103600.0,0.0001724]
[1734304493972,0.48470063,103610.0,103560.0,0.536226]
[1734304493973,0.19308,103590.0,103560.0,0.536226]
[1734304494212,0.09905403,103590.0,103580.0,0.193087]
[1734304494422,0.09905403,103590.0,103570.0,0.38734554]
[1734304494635,0.09905403,103590.0,103570.0,0.00114554]
[1734304494841,0.29212403,103590.0,103570.0,0.00114554]
[1734304495053,0.09905403,103590.0,103570.0,0.38734354]
[1734304495271,0.12205403,103590.0,103580.0,0.193087]
[1734304495913,0.12205403,103590.0,103570.0,0.38734354]
[1734304496783,0.31512303,103590.0,103570.0,0.00114554]
[1734304496988,0.31512303,103590.0,103570.0,0.19425054]
[1734304498679,0.32504698,103590.0,103570.0,0.19425054]
[1734304498903,0.13197798,103590.0,103570.0,0.38735554]
[1734304499322,0.13197798,103590.0,103570.0,0.38734454]
[1734304500923,0.13197798,103590.0,103570.0,0.38733454]
[1734304501134,0.00992395,103590.0,103580.0,0.343087]
[1734304501351,0.10897798,103590.0,103570.0,0.00114554]
[1734304501560,0.09905403,103590.0,103570.0,0.34423954]
[1734304501780,0.09905403,103580.0,103570.0,0.00114554]
[1734304501990,0.1391324,103580.0,103570.0,0.00114554]
[1734304502201,0.1391324,103580.0,103570.0,0.00016444]
[1734304502409,0.1621324,103580.0,103570.0,0.00016444]
[1734304502883,0.1621324,103580.0,103570.0,0.00033684]
[1734304503965,0.10485068,103580.0,103570.0,0.00033684]
[1734304504422,2.9e-07,103580.0,103570.0,0.64605892]
[1734304504632,0.2,103610.0,103600.0,0.34305]
[1734304505072,0.20986015,103610.0,103600.0,0.34305]
[1734304505562,0.00986015,103610.0,103600.0,0.34305]
[1734304505772,0.5414,103640.0,103630.0,0.192994]
[1734304505979,0.64045403,103640.0,103630.0,0.192994]
[1734304506198,0.64681804,103640.0,103630.0,0.192994]
[1734304506424,0.64681804,103640.0,103620.0,0.579014]
[1734304507081,0.64698263,103640.0,103630.0,0.192994]
[1734304507297,0.5479286,103640.0,103630.0,0.192994]
[1734304507523,0.01875083,103640.0,103630.0,0.342994]
[1734304507750,0.0065286,103640.0,103630.0,0.342994]
[1734304508892,0.57923202,103670.0,103640.0,0.385919]
[1734304509101,0.00054842,103660.0,103650.0,0.192956]
[1734304509353,0.00054842,103660.0,103650.0,0.535913]
[1734304509789,0.0001726,103690.0,103680.0,0.15]
[1734304510222,0.0001726,103690.0,103680.0,0.342901]
[1734304510698,0.0001726,103690.0,103670.0,0.192905]
[1734304510906,0.09922663,103690.0,103670.0,0.15]
[1734304511115,0.09922663,103690.0,103670.0,0.342919]
[1734304511535,0.09922663,103690.0,103670.0,0.535838]
[1734304511961,0.09922663,103690.0,103670.0,0.728743]
[1734304512171,0.0231726,103690.0,103680.0,0.35749545]
[1734304512392,0.0001726,103690.0,103680.0,0.35749545]
[1734304513039,0.0001726,103690.0,103680.0,0.50749545]
[1734304513299,0.0001726,103690.0,103680.0,0.65708801]
[1734304513942,0.57290881,103720.0,103700.0,0.192864]
[1734304514151,0.09905403,103710.0,103700.0,0.192864]
[1734304514362,0.09905403,103710.0,103700.0,0.21135656]
[1734304515052,0.58506398,103720.0,103700.0,0.52595101]
[1734304515053,0.01215517,103720.0,103700.0,0.52595101]
[1734304515274,8.62e-05,103730.0,103720.0,0.05]
[1734304515492,0.00025078,103730.0,103720.0,0.53894848]
[1734304515702,0.00025078,103730.0,103720.0,0.75026704]
[1734304516581,0.00025078,103730.0,103720.0,0.65121301]
[1734304518092,0.00025078,103730.0,103720.0,0.75026704]
[1734304518307,0.00025078,103730.0,103720.0,2.48854904]
[1734304518535,0.00025078,103730.0,103720.0,1.41859504]
[1734304518750,0.00025078,103730.0,103720.0,0.70026704]
[1734304518965,0.00201718,103750.0,103740.0,0.342789]
[1734304519386,0.00201718,103750.0,103740.0,0.52934497]
[1734304520237,0.00197718,103750.0,103740.0,0.52934497]
[1734304520442,0.00197718,103750.0,103740.0,0.36475052]
[1734304520875,0.00197718,103750.0,103740.0,0.17196152]
[1734304521092,0.10103121,103750.0,103730.0,0.385601]
[1734304521315,0.10103121,103750.0,103730.0,0.192794]
[1734304521521,0.10103121,103750.0,103730.0,0.20923106]
[1734304521730,0.10103121,103750.0,103730.0,0.40203606]
[1734304521980,0.10103121,103750.0,103730.0,0.15]
[1734304522215,0.10103121,103750.0,103730.0,0.342807]
[1734304522470,0.10103121,103750.0,103730.0,0.535604]
[1734304522894,0.10103121,103750.0,103730.0,0.342808]
[1734304523130,0.00197718,103750.0,103740.0,0.20100753]
[1734304523343,0.00197718,103750.0,103740.0,0.20922606]
[1734304523645,0.00197718,103750.0,103740.0,0.35922606]
[1734304524075,8.62e-05,103770.0,103750.0,0.192771]
[1734304524289,0.09968821,103770.0,103750.0,0.192758]
[1734304524937,0.09968821,103770.0,103740.0,0.5365503]
[1734304525131,0.09968821,103770.0,103740.0,0.3437743]
[1734304525347,0.09968821,103770.0,103750.0,0.19277]
[1734304525568,0.1117329,103770.0,103740.0,0.3437743]
[1734304525776,0.3044689,103770.0,103740.0,0.7293293]
[1734304525992,0.58897307,103760.0,103740.0,0.0009993]
[1734304526215,0.78173807,103760.0,103740.0,0.0009993]
[1734304526430,0.97450307,103760.0,103740.0,0.0009993]
[1734304526652,0.215771,103750.0,103740.0,0.0009993]
[1734304526867,0.31482503,103750.0,103740.0,0.0009993]
[1734304527089,0.85250704,103740.0,103710.0,0.192837]
[1734304527311,0.31486203,103730.0,103720.0,0.0009921]
[1734304527536,0.12205403,103730.0,103720.0,0.0009921]
[1734304527742,0.46691904,103740.0,103720.0,0.192826]
[1734304527952,0.56597307,103740.0,103720.0,0.385642]
[1734304528171,0.48991904,103740.0,103730.0,0.192808]
[1734304528392,0.2,103750.0,103730.0,0.64926448]
[1734304528610,0.21213089,103770.0,103750.0,0.192758]
[1734304528872,0.3117329,103770.0,103750.0,0.385518]
[1734304529089,0.3117329,103770.0,103750.0,0.385515]
[1734304529305,0.3117329,103770.0,103740.0,0.192777]
[1734304529527,0.29180603,103760.0,103740.0,0.0009928]
[1734304529746,0.192771,103750.0,103740.0,0.0009928]
[1734304529978,0.29182503,103750.0,103740.0,0.0009928]
[1734304530222,0.29182503,103750.0,103710.0,0.192834]
[1734304530223,0.1928,103740.0,103710.0,0.192834]
[1734304530441,0.1928,103740.0,103700.0,0.434796]
[1734304530442,0.75878307,103730.0,103720.0,0.0009856]
[1734304530656,0.023,103710.0,103690.0,0.19288]
[1734304530884,0.12205403,103710.0,103690.0,0.38576]
[1734304531526,0.12205403,103710.0,103690.0,0.385749]
[1734304531956,0.12205403,103710.0,103690.0,0.57878358]
[1734304531957,0.12147403,103710.0,103690.0,0.57878358]
[1734304532166,0.46691904,103720.0,103700.0,0.385717]
[1734304532388,0.56597307,103720.0,103690.0,0.19303458]
[1734304532649,0.75879907,103720.0,103690.0,0.38590458]
[1734304532866,0.56597307,103720.0,103700.0,0.192849]
[1734304533094,0.56597307,103720.0,103700.0,0.385702]
[1734304533515,0.57790832,103720.0,103700.0,0.385702]
[1734304534815,0.11098928,103720.0,103700.0,0.385702]
[1734304535026,0.30381628,103720.0,103700.0,0.192849]
[1734304535529,0.11098928,103720.0,103700.0,0.192849]
[1734304535748,0.11098928,103720.0,103700.0,0.385702]
[1734304535955,0.11098928,103720.0,103700.0,0.578553]
[1734304536377,0.11098928,103720.0,103690.0,0.34303858]
[1734304536633,0.05,103700.0,103690.0,0.00016458]
[1734304536849,0.36491803,103700.0,103690.0,0.00016458]
[1734304537059,0.023,103690.0,103680.0,0.38579]
[1734304537272,0.71345403,103700.0,103690.0,0.192882]
[1734304537273,0.02316428,103700.0,103690.0,0.192882]
[1734304537493,0.00016428,103700.0,103690.0,0.192882]
[1734304537696,0.00016428,103700.0,103680.0,0.36992759]
[1734304537907,0.00016428,103700.0,103690.0,0.192882]
[1734304538323,0.00016428,103700.0,103690.0,0.342882]
[1734304538936,0.30446225,103720.0,103690.0,0.5359362]
[1734304538937,0.23762652,103720.0,103690.0,0.5359362]
[1734304539139,0.23762652,103720.0,103690.0,0.53610048]
[1734304539140,0.33668055,103720.0,103690.0,0.53610048]
[1734304539361,0.33668055,103720.0,103700.0,0.192857]
[1734304539774,0.85629903,103710.0,103690.0,0.00033648]
[1734304539977,1.04915603,103710.0,103690.0,0.19321548]
[1734304540185,0.66345403,103710.0,103690.0,0.38607648]
[1734304540390,0.59122235,103720.0,103700.0,0.192852]
[1734304540602,0.00502283,103720.0,103710.0,0.342845]
[1734304540812,8.61e-05,103730.0,103720.0,0.34802648]
[1734304541019,8.61e-05,103730.0,103720.0,0.51262093]
[1734304541437,8.61e-05,103730.0,103720.0,0.66167496]
[1734304543907,8.61e-05,103730.0,103720.0,0.39802648]
[1734304544116,0.55380813,103760.0,103720.0,0.342815]
[1734304544117,0.192771,103750.0,103720.0,0.342815]
[1734304544320,0.29182503,103750.0,103720.0,0.54082448]
[1734304544569,1.01630277,103750.0,103720.0,0.535624]
[1734304544773,0.60894825,103740.0,103720.0,0.342809]
[1734304544980,0.80174225,103740.0,103710.0,0.385666]
[1734304545185,0.99454225,103740.0,103710.0,0.385666]
[1734304545400,0.84654177,103740.0,103710.0,0.385666]
[1734304545810,1.03934277,103740.0,103710.0,0.385666]
[1734304546207,1.23214477,103740.0,103710.0,0.385666]
[1734304546501,0.192808,103730.0,103710.0,0.192833]
[1734304546716,0.29186203,103730.0,103700.0,0.320152]
[1734304546895,0.09905403,103720.0,103700.0,0.513005]
[1734304547046,0.31488003,103720.0,103700.0,0.385705]
[1734304547258,0.31488003,103720.0,103690.0,0.38608248]
[1734304547461,0.50772003,103720.0,103690.0,0.58415396]
[1734304547661,0.50772003,103720.0,103690.0,0.57895348]
[1734304548012,0.50772003,103720.0,103690.0,0.58415396]
[1734304548395,0.50772003,103720.0,103700.0,0.385704]
[1734304548396,0.12205403,103720.0,103700.0,0.385704]
[1734304548600,0.32205403,103720.0,103700.0,0.192852]
[1734304548803,0.51488103,103720.0,103700.0,0.192852]
[1734304549374,0.31488103,103720.0,103700.0,0.192852]
[1734304550747,0.3269661,103720.0,103700.0,0.192852]
[1734304551189,1.00668732,103720.0,103700.0,0.15]
[1734304551391,1.19953132,103720.0,103700.0,0.15]
[1734304551594,1.00668732,103720.0,103700.0,0.15]
[1734304551799,1.00669732,103720.0,103700.0,0.15]
[1734304552036,0.192845,103710.0,103690.0,0.19320348]
[1734304552240,0.29189903,103710.0,103690.0,0.19320348]
[1734304552936,0.12205403,103700.0,103690.0,0.15033648]
[1734304553146,0.01208507,103720.0,103690.0,0.15553696]
[1734304553352,0.01208507,103720.0,103710.0,0.242845]
[1734304553558,0.2763,103740.0,103720.0,0.192826]
[1734304553770,0.37535403,103740.0,103720.0,0.385641]
[1734304553984,0.2,103740.0,103730.0,0.192808]
[1734304554191,0.21193224,103740.0,103730.0,0.392808]
[1734304554451,0.21193224,103740.0,103730.0,0.39800848]
[1734304554452,0.2,103740.0,103730.0,0.39800848]
[1734304554664,8.61e-05,103750.0,103730.0,0.59081648]
[1734304554869,8.61e-05,103750.0,103740.0,0.85993804]
[1734304555087,8.61e-05,103750.0,103740.0,0.85897407]
[1734304555289,8.61e-05,103750.0,103740.0,0.53568507]
[1734304555290,0.00025053,103750.0,103740.0,0.53568507]
[1734304555495,0.00025053,103750.0,103740.0,0.72847407]
[1734304555916,0.00025053,103750.0,103740.0,0.74081699]
[1734304558113,0.00025053,103750.0,103740.0,0.87021699]
[1734304558573,0.00025053,103750.0,103740.0,0.69081699]
[1734304558774,0.00025053,103750.0,103740.0,0.49704351]
[1734304558997,0.22102649,103780.0,103750.0,0.00520048]
[1734304559129,0.3206284,103780.0,103750.0,0.39071348]
[1734304559335,0.5133564,103780.0,103750.0,0.39071348]
[1734304559781,0.5133564,103780.0,103750.0,0.39071248]
[1734304560089,0.5133564,103780.0,103750.0,0.58347148]
[1734304560285,0.7060864,103780.0,103750.0,0.39071248]
[1734304560464,0.09960191,103780.0,103760.0,0.192742]
[1734304560896,0.00054788,103780.0,103770.0,0.192733]
[1734304562141,0.00063398,103780.0,103770.0,0.192733]
[1734304562332,0.01295694,103780.0,103770.0,0.192733]
[1734304562597,0.00063398,103780.0,103770.0,0.192733]
[1734304563595,0.00063398,103780.0,103770.0,0.342733]
[1734304564221,0.00063398,103780.0,103770.0,0.39793348]
[1734304564421,0.00063398,103780.0,103770.0,0.4146069]
[1734304566323,0.00063398,103780.0,103770.0,0.56190462]
[1734304566552,0.00063398,103780.0,103770.0,0.75057235]
[1734304566815,0.00063398,103780.0,103770.0,0.79667235]
[1734304568151,0.00063398,103780.0,103770.0,0.78185865]
[1734304568361,0.00063398,103780.0,103770.0,0.15]
[1734304568566,0.00063398,103780.0,103770.0,0.34793348]
[1734304568775,0.00053398,103780.0,103770.0,0.15520048]
[1734304568982,0.60457884,103790.0,103780.0,0.15]
[1734304569195,0.60474311,103790.0,103780.0,0.15]
[1734304569406,0.192719,103780.0,103760.0,0.19274]
[1734304569618,0.023,103780.0,103770.0,0.192733]
[1734304569842,0.89755111,103790.0,103760.0,0.385481]
[1734304569843,1.09026411,103790.0,103760.0,0.385481]
[1734304570058,0.192716,103780.0,103760.0,0.385481]
[1734304570305,0.89755111,103790.0,103760.0,0.24794048]
[1734304570511,1.18931414,103790.0,103760.0,0.19794048]
[1734304570713,1.38202614,103790.0,103770.0,0.15]
[1734304570929,0.99660514,103790.0,103770.0,0.342733]
[1734304571142,1.18931214,103790.0,103770.0,0.15]
[1734304571359,1.18931114,103790.0,103770.0,0.15]
[1734304571601,0.72679714,103790.0,103760.0,0.05520048]
[1734304571820,0.60474311,103790.0,103780.0,0.15520048]
[1734304572036,0.60474311,103790.0,103780.0,0.34791548]
[1734304572257,0.60474311,103790.0,103780.0,0.39791548]
[1734304573696,0.60482921,103790.0,103780.0,0.39791548]
[1734304573945,0.60482921,103790.0,103780.0,0.49696951]
[1734304574464,0.60482921,103790.0,103780.0,0.39791548]
[1734304575768,0.60482921,103790.0,103780.0,0.34791548]
[1734304576199,0.60482921,103790.0,103780.0,0.15]
[1734304576410,0.91957924,103790.0,103780.0,0.15]
[1734304576619,0.91957924,103790.0,103770.0,0.15]
[1734304576837,0.91957924,103790.0,103770.0,0.15520048]
[1734304577049,1.30499824,103790.0,103770.0,0.15]
[1734304577257,1.11228524,103790.0,103770.0,0.15520048]
[1734304577693,0.72688324,103790.0,103770.0,0.34793348]
[1734304577906,0.72688324,103790.0,103770.0,0.54065648]
[1734304578136,0.72688324,103790.0,103770.0,0.73337848]
[1734304578362,0.72688324,103790.0,103780.0,0.192715]
[1734304578588,0.72688324,103790.0,103770.0,0.54064348]
[1734304579024,0.72688324,103790.0,103770.0,0.73336748]
[1734304579658,0.74192492,103790.0,103770.0,0.73336748]
[1734304579912,0.74192492,103790.0,103780.0,0.342715]
[1734304579913,0.61987089,103790.0,103780.0,0.342715]
[1734304580116,0.60482921,103790.0,103780.0,0.92437565]
[1734304580553,0.50847921,103790.0,103780.0,0.97437565]
[1734304580758,0.38037921,103790.0,103780.0,1.02437565]
[1734304580969,0.12607921,103790.0,103780.0,0.91027565]
[1734304581195,0.11337921,103790.0,103780.0,0.93327565]
[1734304581413,4e-07,103820.0,103810.0,0.44785948]
[1734304581624,4e-07,103820.0,103810.0,0.71088465]
[1734304583140,0.4393432,103850.0,103830.0,0.39782248]
[1734304583346,0.4393432,103850.0,103830.0,0.66084765]
[1734304583560,0.4393432,103850.0,103830.0,0.82144165]
[1734304583783,0.4393432,103850.0,103830.0,0.89444165]
[1734304583999,0.37234319,103850.0,103840.0,0.41917162]
[1734304584208,0.37234319,103850.0,103840.0,1.3123511]
[1734304584392,0.37250749,103850.0,103840.0,0.8641021]
[1734304584604,0.36246749,103850.0,103840.0,0.8641021]
[1734304584805,0.36246749,103850.0,103840.0,0.7275481]
[1734304585032,0.36246749,103850.0,103840.0,0.8362071]
[1734304585410,0.36246749,103850.0,103840.0,0.8862071]
[1734304586198,0.36246749,103850.0,103840.0,0.86504519]
[1734304586414,0.36246749,103850.0,103840.0,0.84386378]
[1734304586880,0.36236749,103850.0,103840.0,0.84386378]
[1734304587404,0.36236749,103850.0,103840.0,0.7275481]
[1734304587629,0.36236749,103850.0,103840.0,0.5775481]
[1734304588989,0.29536748,103850.0,103840.0,0.5775481]
[1734304589397,0.29536748,103850.0,103840.0,0.7275481]
[1734304591330,0.29536748,103850.0,103840.0,1.0314851]
[1734304592595,0.30176966,103850.0,103840.0,1.0314851]
[1734304592852,0.30176966,103850.0,103840.0,0.7275481]
[1734304593062,0.30176966,103850.0,103840.0,0.6775481]
[1734304593274,0.2996356,103850.0,103840.0,0.7275481]
[1734304594018,0.23263559,103850.0,103840.0,0.7275481]
[1734304594912,0.30873559,103850.0,103840.0,0.7275481]
[1734304595138,0.30877559,103850.0,103840.0,0.7275481]
[1734304595386,0.30377559,103850.0,103840.0,0.7275481]
[1734304597556,0.30377559,103850.0,103840.0,0.39780448]
[1734304597557,0.35147559,103850.0,103840.0,0.39780448]
[1734304597776,0.35156189,103850.0,103840.0,0.39780448]
[1734304598427,0.35156189,103850.0,103840.0,0.49685851]
[1734304599078,0.28446188,103850.0,103840.0,0.39780448]
[1734304599937,0.47704688,103850.0,103830.0,0.242608]
[1734304600152,0.66964288,103850.0,103830.0,0.43522]
[1734304600377,0.28446188,103850.0,103840.0,0.192604]
[1734304600799,0.16066188,103850.0,103840.0,0.24780448]
[1734304601015,0.16066188,103850.0,103840.0,0.34685851]
[1734304601224,0.16066188,103850.0,103840.0,0.49685851]
[1734304601440,0.15639376,103850.0,103840.0,0.49685851]
[1734304602307,0.15639376,103850.0,103840.0,0.392604]
[1734304602522,0.27999376,103850.0,103840.0,0.15]
[1734304603178,0.49557876,103850.0,103840.0,0.15]
[1734304603394,0.49557876,103850.0,103830.0,0.2]
[1734304603614,0.47257876,103850.0,103830.0,0.20520048]